fUSD/lending_fUSD_20240122
["ID","MTS","AMOUNT","RATE_DAILY","PERIOD"]
[312522675,1705942274113,-676.51,0.00055342,120]
[312522676,1705942274123,-1000.0,0.00055342,7]
[312522677,1705942274133,-800.29,0.00055342,120]
[312522678,1705942274143,-977.04,0.00055342,120]
[312522679,1705942274152,-940.44,0.00055342,120]
[312522680,1705942274162,-622.73,0.00055342,120]
[312522681,1705942274172,-812.24,0.00055342,120]
[312522682,1705942274182,-4003.53,0.00055342,120]
[312522683,1705942274191,-543.32,0.00055342,120]
[312522684,1705942274201,-762.89,0.00055342,120]
[312522685,1705942274211,-683.59,0.00055342,120]
[312522686,1705942274220,-735.35,0.00055342,120]
[312522687,1705942274231,-500.0,0.00055342,120]
[312522688,1705942274241,-500.0,0.00055342,120]
[312522689,1705942274250,-512.0121676,0.00055342,120]
[312522690,1705942274261,-7945.75,0.00055342,120]
[312522691,1705942274271,-500.0,0.00055342,120]
[312522692,1705942274281,-752.98,0.00055342,120]
[312522693,1705942274290,-1119.94,0.00055342,120]
[312522694,1705942274300,-658.72,0.00055342,120]
[312522695,1705942274311,-590.12,0.00055342,120]
[312522696,1705942274320,-500.0,0.00055342,120]
[312522697,1705942274329,-500.0,0.00055342,120]
[312522698,1705942274339,-500.0,0.00055342,120]
[312522699,1705942274349,-500.0,0.00055342,120]
[312522700,1705942274358,-1197.36,0.00055342,120]
[312522701,1705942274368,-873.76,0.00055342,120]
[312522702,1705942274379,-536.78,0.00055342,120]
[312522703,1705942274388,-1072.31,0.00055342,120]
[312522704,1705942274398,-500.0,0.00055342,120]
[312522705,1705942274408,-500.0,0.00055342,120]
[312522706,1705942274417,-542.94745611,0.00055342,120]
[312522707,1705942274624,-916.28,0.00055342,120]
[312522708,1705942274647,-894.82,0.00055342,120]
[312522709,1705942274657,-500.0,0.00055342,120]
[312522710,1705942274667,-500.0,0.00055342,120]
[312522711,1705942274677,-500.0,0.00055342,120]
[312522712,1705942274687,-500.0,0.00055342,120]
[312522713,1705942274697,-561.61831304,0.00055342,120]
[312522714,1705942274707,-500.0,0.00055342,120]
[312522715,1705942274717,-563.54,0.00055342,120]
[312522716,1705942274727,-984.92,0.00055342,120]
[312522717,1705942274736,-156.86156426,0.00055342,120]
[312522718,1705942274746,-500.0,0.00055342,120]
[312522719,1705942274755,-500.0,0.00055342,120]
[312522720,1705942274765,-2024.59,0.00055342,7]
[312522721,1705942274774,-500.0,0.00055342,120]
[312522722,1705942274784,-500.0,0.00055342,120]
[312522723,1705942274794,-873.84,0.00055342,120]
[312522724,1705942274803,-500.0,0.00055342,120]
[312522725,1705942274812,-500.0,0.00055342,120]
[312522726,1705942274822,-1503.79,0.00055342,120]
[312522727,1705942274832,-500.0,0.00055342,120]
[312522728,1705942274841,-646.15,0.00055342,120]
[312522729,1705942274851,-500.0,0.00055342,120]
[312522730,1705942274861,-781.35,0.00055342,120]
[312522731,1705942274871,-564.76,0.00055342,120]
[312522732,1705942274881,-1064.36,0.00055342,120]
[312522733,1705942274891,-519.13,0.00055342,120]
[312522734,1705942274900,-1095.74,0.00055342,120]
[312522735,1705942274910,-1291.13,0.00055342,120]
[312522736,1705942274920,-500.0,0.00055342,120]
[312522737,1705942274929,-712.79,0.00055342,120]
[312522738,1705942274939,-500.0,0.00055342,120]
[312522739,1705942274948,-736.14,0.00055342,120]
[312522740,1705942274958,-500.0,0.00055342,120]
[312522741,1705942274968,-1311.07,0.00055342,120]
[312522742,1705942274978,-500.0,0.00055342,120]
[312522743,1705942274987,-500.0,0.00055342,120]
[312522744,1705942274997,-500.0,0.00055342,120]
[312522745,1705942275006,-500.0,0.00055342,120]
[312522746,1705942275016,-1000.0,0.00055342,7]
[312522747,1705942275026,-997.27,0.00055342,120]
[312522748,1705942275036,-1180.26,0.00055342,30]
[312522749,1705942275045,-879.87,0.00055342,120]
[312522750,1705942275055,-500.0,0.00055342,120]
[312522751,1705942275064,-500.0,0.00055342,120]
[312522752,1705942275073,-500.0,0.00055342,120]
[312522753,1705942275083,-500.0,0.00055342,120]
[312522754,1705942275092,-500.0,0.00055342,120]
[312522755,1705942275101,-1101.52,0.00055342,120]
[312522756,1705942275110,-500.0,0.00055342,120]
[312522757,1705942275119,-1000.0,0.00055342,120]
[312522758,1705942275130,-596.97,0.00055342,120]
[312522759,1705942275139,-500.0,0.00055342,120]
[312522760,1705942275149,-677.87,0.00055342,120]
[312522761,1705942275158,-500.0,0.00055342,120]
[312522762,1705942275168,-500.0,0.00055342,30]
[312522763,1705942275178,-758.09,0.00055342,120]
[312522764,1705942275187,-507.01597308,0.00055342,120]
[312522765,1705942275196,-500.0,0.00055342,120]
[312522766,1705942275207,-500.0,0.00055342,120]
[312522767,1705942275216,-500.0,0.00055342,120]
[312522768,1705942275225,-678.57,0.00055342,120]
[312522769,1705942275236,-635.69254852,0.00055342,120]
[312522770,1705942275245,-500.0,0.00055342,7]
[312522771,1705942275255,-500.0,0.00055342,120]
[312522772,1705942275264,-764.95,0.00055342,120]
[312522773,1705942275274,-500.0,0.00055342,120]
[312522774,1705942275283,-535.75,0.00055342,120]
[312522775,1705942275292,-500.0,0.00055342,120]
[312522776,1705942275302,-500.0,0.00055342,120]
[312522777,1705942275312,-500.0,0.00055342,120]
[312522778,1705942275322,-1153.09,0.00055342,120]
[312522779,1705942275331,-768.51,0.00055342,120]
[312522780,1705942275340,-500.0,0.00055342,120]
[312522781,1705942275350,-1045.19,0.00055342,120]
[312522782,1705942275359,-500.0,0.00055342,120]
[312522783,1705942275369,-876.25,0.00055342,120]
[312522784,1705942275378,-552.31,0.00055342,120]
[312522785,1705942275388,-697.88,0.00055342,120]
[312522786,1705942275397,-500.0,0.00055342,120]
[312522787,1705942275406,-500.0,0.00055342,120]
[312522788,1705942275417,-619.89,0.00055342,120]
[312522789,1705942275427,-746.34,0.00055342,120]
[312522790,1705942275436,-503.91,0.00055342,120]
[312522791,1705942275446,-770.55,0.00055342,120]
[312522792,1705942275456,-515.99,0.00055342,120]
[312522793,1705942275465,-533.69,0.00055342,120]
[312522794,1705942275477,-500.0,0.00055342,120]
[312522795,1705942275490,-1181.85,0.00055342,120]
[312522796,1705942275499,-500.0,0.00055342,120]
[312522797,1705942275523,-500.0,0.00055342,120]
[312522798,1705942275533,-500.0,0.00055342,120]
[312522799,1705942275558,-1727.31,0.00055342,120]
[312522800,1705942275568,-500.0,0.00055342,120]
[312522801,1705942275587,-500.0,0.00055342,120]
[312522802,1705942275597,-375.69082884,0.00055342,120]
[312522803,1705942275607,-953.83,0.00055342,120]
[312522804,1705942275633,-500.0,0.00055342,120]
[312522805,1705942275646,-609.57,0.00055342,120]
[312522806,1705942275663,-500.0,0.00055342,120]
[312522807,1705942275675,-517.57,0.00055342,120]
[312522808,1705942275687,-759.29,0.00055342,120]
[312522809,1705942275696,-563.49,0.00055342,120]
[312522810,1705942275706,-500.0,0.00055342,120]
[312522811,1705942275716,-500.0,0.00055342,120]
[312522812,1705942275726,-1765.42,0.00055342,120]
[312522813,1705942275736,-945.78,0.00055342,120]
[312522814,1705942275746,-2780.15,0.00055342,120]
[312522815,1705942275755,-500.0,0.00055342,120]
[312522816,1705942275765,-1143.05,0.00055342,120]
[312522817,1705942275775,-500.0,0.00055342,120]
[312522818,1705942275785,-739.81,0.00055342,120]
[312522819,1705942275795,-500.0,0.00055342,120]
[312522820,1705942275805,-500.0,0.00055342,120]
[312522821,1705942275815,-630.92,0.00055342,120]
[312522822,1705942275824,-500.0,0.00055342,120]
[312522823,1705942275834,-500.0,0.00055342,120]
[312522824,1705942275844,-500.0,0.00055342,120]
[312522825,1705942275854,-6946.56,0.00055342,120]
[312522826,1705942275865,-500.0,0.00055342,120]
[312522827,1705942275875,-1112.59,0.00055342,120]
[312522828,1705942275885,-729.29,0.00055342,120]
[312522829,1705942275895,-779.09,0.00055342,120]
[312522830,1705942275905,-3649.41,0.00055342,120]
[312522831,1705942275916,-500.0,0.00055342,120]
[312522832,1705942275927,-500.0,0.00055342,120]
[312522833,1705942275937,-500.0,0.00055342,120]
[312522834,1705942275947,-500.0,0.00055342,120]
[312522835,1705942275956,-1830.13,0.00055342,120]
[312522836,1705942275966,-8171.7,0.00055342,120]
[312522837,1705942275975,-500.0,0.00055342,120]
[312522838,1705942275985,-598.39,0.00055342,120]
[312522839,1705942275994,-500.0,0.00055342,120]
[312522840,1705942276003,-885.03,0.00055342,120]
[312522841,1705942276013,-552.57,0.00055342,120]
[312522842,1705942276023,-500.0,0.00055342,120]
[312522843,1705942276032,-500.0,0.00055342,120]
[312522844,1705942276042,-500.0,0.00055342,120]
[312522845,1705942276052,-681.33,0.00055342,120]
[312522846,1705942276061,-2620.03,0.00055342,120]
[312522847,1705942276070,-647.49896849,0.00055342,120]
[312522848,1705942276079,-500.0,0.00055342,120]
[312522849,1705942276088,-385.6,0.00055342,120]
[312522850,1705942276097,-500.0,0.00055342,120]
[312522851,1705942276106,-674.46,0.00055342,120]
[312522852,1705942276114,-580.85,0.00055342,120]
[312522853,1705942276124,-1767.29,0.00055342,120]
[312522854,1705942276134,-722.83,0.00055342,120]
[312522855,1705942276143,-500.0,0.00055342,120]
[312522856,1705942276154,-500.0,0.00055342,120]
[312522857,1705942276163,-717.86,0.00055342,120]
[312522858,1705942276172,-500.0,0.00055342,120]
[312522859,1705942276181,-1143.05,0.00055342,120]
[312522860,1705942276190,-500.0,0.00055342,120]
[312522861,1705942276200,-1133.33,0.00055342,120]
[312522862,1705942276210,-500.0,0.00055342,120]
[312522863,1705942276220,-1000.0,0.00055342,120]
[312522864,1705942276230,-500.0,0.00055342,120]
[312522865,1705942276239,-500.0,0.00055342,120]
[312522866,1705942276250,-540.86,0.00055342,120]
[312522867,1705942276260,-500.0,0.00055342,120]
[312522868,1705942276270,-500.0,0.00055342,120]
[312522869,1705942276280,-500.0,0.00055342,120]
[312522870,1705942276290,-610.88,0.00055342,120]
[312522871,1705942276299,-439.48418345,0.00055342,120]
[312522872,1705942276309,-5682.89,0.00055342,120]
[312522873,1705942276318,-917.6,0.00055342,120]
[312522874,1705942276328,-774.42,0.00055342,120]
[312522875,1705942276338,-638.56,0.00055342,120]
[312522876,1705942276348,-1451.88,0.00055342,120]
[312522877,1705942276358,-500.0,0.00055342,120]
[312522878,1705942276367,-2543.46,0.00055342,120]
[312522879,1705942276378,-2607.73,0.00055342,120]
[312522880,1705942276388,-745.28,0.00055342,120]
[312522881,1705942276397,-500.0,0.00055342,120]
[312522882,1705942276407,-820.5,0.00055342,120]
[312522883,1705942276416,-500.0,0.00055342,120]
[312522884,1705942276426,-1200.74,0.00055342,120]
[312522885,1705942276436,-1676.05,0.00055342,120]
[312522886,1705942276445,-507.1973027,0.00055342,120]
[312522887,1705942276455,-3921.91,0.00055342,120]
[312522888,1705942276464,-1841.71,0.00055342,120]
[312522889,1705942276475,-500.0,0.00055342,120]
[312522890,1705942276486,-500.0,0.00055342,120]
[312522891,1705942276496,-1638.92,0.00055342,120]
[312522892,1705942276507,-500.0,0.00055342,120]
[312522893,1705942276517,-760.03,0.00055342,120]
[312522894,1705942276528,-983.65,0.00055342,120]
[312522895,1705942276537,-753.79,0.00055342,120]
[312522896,1705942276548,-694.12,0.00055342,120]
[312522897,1705942276558,-1023.91,0.00055342,120]
[312522898,1705942276568,-500.0,0.00055342,120]
[312522899,1705942276579,-1153.82,0.00055342,120]
[312522900,1705942276589,-895.96,0.00055342,120]
[312522901,1705942276599,-500.0,0.00055342,120]
[312522902,1705942276608,-500.0,0.00055342,120]
[312522903,1705942276618,-500.0,0.00055342,120]
[312522904,1705942276629,-500.0,0.00055342,120]
[312522905,1705942276639,-630.13,0.00055342,120]
[312522906,1705942276649,-906.48,0.00055342,120]
[312522907,1705942276659,-500.0,0.00055342,120]
[312522908,1705942276669,-500.0,0.00055342,120]
[312522909,1705942276679,-1028.29,0.00055342,120]
[312522910,1705942276688,-500.0,0.00055342,120]
[312522911,1705942276697,-649.02,0.00055342,120]
[312522912,1705942276706,-773.13,0.00055342,120]
[312522913,1705942276716,-500.0,0.00055342,120]
[312522914,1705942276726,-500.0,0.00055342,120]
[312522915,1705942276735,-1504.11,0.00055342,120]
[312522916,1705942276745,-768.01,0.00055342,120]
[312522917,1705942276754,-778.2,0.00055342,120]
[312522918,1705942276763,-1829.78,0.00055342,120]
[312522919,1705942276773,-500.0,0.00055342,120]
[312522920,1705942276783,-543.66,0.00055342,120]
[312522921,1705942276792,-500.0,0.00055342,120]
[312522922,1705942276802,-950.19,0.00055342,120]
[312522923,1705942276810,-500.0,0.00055342,120]
[312522924,1705942276820,-505.05,0.00055342,120]
[312522925,1705942276835,-1074.68,0.00055342,120]
[312522926,1705942276845,-500.0,0.00055342,120]
[312522927,1705942276854,-1213.81,0.00055342,120]
[312522928,1705942276863,-823.2,0.00055342,120]
[312522929,1705942276872,-500.0,0.00055342,120]
[312522930,1705942276883,-500.0,0.00055342,120]
[312522931,1705942276892,-1115.17,0.00055342,120]
[312522932,1705942276901,-856.62,0.00055342,120]
[312522933,1705942276910,-500.0,0.00055342,120]
[312522934,1705942276919,-682.86,0.00055342,120]
[312522935,1705942276928,-594.97,0.00055342,120]
[312522936,1705942276938,-500.0,0.00055342,120]
[312522937,1705942276947,-1646.87,0.00055342,120]
[312522938,1705942276956,-822.11,0.00055342,120]
[312522939,1705942276966,-500.0,0.00055342,120]
[312522940,1705942276975,-828.1,0.00055342,120]
[312522941,1705942276984,-580.05,0.00055342,120]
[312522942,1705942276994,-500.0,0.00055342,120]
[312522943,1705942277069,-2595.41,0.00055342,120]
[312522944,1705942277079,-630.62,0.00055342,120]
[312522945,1705942277088,-500.0,0.00055342,120]
[312522946,1705942277098,-930.18,0.00055342,120]
[312522947,1705942277107,-500.0,0.00055342,120]
[312522948,1705942277116,-525.30008904,0.00055342,120]
[312522949,1705942277125,-500.0,0.00055342,120]
[312522950,1705942277135,-527.89170686,0.00055342,120]
[312522951,1705942277144,-1073.28,0.00055342,120]
[312522952,1705942277153,-678.49,0.00055342,120]
[312522953,1705942277162,-742.05,0.00055342,120]
[312522954,1705942277171,-500.0,0.00055342,120]
[312522955,1705942277180,-1590.69,0.00055342,120]
[312522956,1705942277190,-829.6,0.00055342,120]
[312522957,1705942277199,-617.27,0.00055342,120]
[312522958,1705942277208,-500.0,0.00055342,120]
[312522959,1705942277217,-500.0,0.00055342,120]
[312522960,1705942277226,-815.78,0.00055342,120]
[312522961,1705942277235,-1543.05,0.00055342,120]
[312522962,1705942277244,-500.0,0.00055342,120]
[312522963,1705942277252,-1475.16,0.00055342,120]
[312522964,1705942277262,-714.16,0.00055342,120]
[312522965,1705942277271,-500.0,0.00055342,120]
[312522966,1705942277280,-1006.24,0.00055342,120]
[312522967,1705942277289,-758.37,0.00055342,120]
[312522968,1705942277298,-500.0,0.00055342,120]
[312522969,1705942277307,-1423.08,0.00055342,120]
[312522970,1705942277317,-500.0,0.00055342,120]
[312522971,1705942277326,-765.85,0.00055342,120]
[312522972,1705942277335,-620.07108173,0.00055342,30]
[312522973,1705942277345,-810.81,0.00055342,120]
[312522974,1705942277354,-500.0,0.00055342,120]
[312522975,1705942277364,-500.0,0.00055342,120]
[312522976,1705942277373,-569.61,0.00055342,120]
[312522977,1705942277384,-695.94,0.00055342,120]
[312522978,1705942277393,-500.0,0.00055342,120]
[312522979,1705942277403,-500.0,0.00055342,120]
[312522980,1705942277412,-2137.13,0.00055342,120]
[312522981,1705942277422,-500.0,0.00055342,120]
[312522982,1705942277431,-1195.99,0.00055342,120]
[312522983,1705942277440,-735.82,0.00055342,120]
[312522984,1705942277450,-1168.02,0.00055342,120]
[312522985,1705942277459,-675.18,0.00055342,120]
[312522986,1705942277468,-500.0,0.00055342,120]
[312522987,1705942277480,-500.0,0.00055342,120]
[312522988,1705942277489,-500.0,0.00055342,120]
[312522989,1705942277499,-723.21,0.00055342,120]
[312522990,1705942277511,-1962.3,0.00055342,120]
[312522991,1705942277521,-4343.32,0.00055342,120]
[312522992,1705942277531,-500.0,0.00055342,120]
[312522993,1705942277541,-646.29,0.00055342,120]
[312522994,1705942277550,-809.05,0.00055342,120]
[312522995,1705942277560,-1467.22,0.00055342,120]
[312522996,1705942277570,-604.97,0.00055342,120]
[312522997,1705942277579,-759.96,0.00055342,120]
[312522998,1705942277590,-600.2,0.00055342,120]
[312522999,1705942277601,-1223.32,0.00055342,120]
[312523000,1705942277610,-500.0,0.00055342,120]
[312523001,1705942277620,-1336.46,0.00055342,120]
[312523002,1705942277630,-776.65,0.00055342,120]
[312523003,1705942277640,-1097.52,0.00055342,120]
[312523004,1705942277650,-500.0,0.00055342,120]
[312523005,1705942277659,-941.86,0.00055342,120]
[312523006,1705942277669,-3479.79,0.00055342,120]
[312523007,1705942277679,-500.0,0.00055342,120]
[312523008,1705942277689,-6928.17,0.00055342,5]
[312523009,1705942277698,-500.0,0.00055342,120]
[312523010,1705942277708,-1530.05,0.00055342,120]
[312523011,1705942277718,-630.06,0.00055342,120]
[312523012,1705942277727,-500.0,0.00055342,120]
[312523013,1705942277736,-500.0,0.00055342,120]
[312523014,1705942277745,-500.0,0.00055342,120]
[312523015,1705942277756,-631.92,0.00055342,120]
[312523016,1705942277765,-581.13,0.00055342,120]
[312523017,1705942277774,-968.66,0.00055342,120]
[312523018,1705942277784,-663.93,0.00055342,120]
[312523019,1705942277793,-729.77,0.00055342,120]
[312523020,1705942277803,-548.64,0.00055342,120]
[312523021,1705942277812,-1034.47,0.00055342,120]
[312523022,1705942277822,-500.0,0.00055342,120]
[312523023,1705942277832,-1002.03,0.00055342,120]
[312523024,1705942277841,-659.04,0.00055342,120]
[312523025,1705942277850,-500.0,0.00055342,7]
[312523026,1705942277860,-669.88,0.00055342,120]
[312523027,1705942277869,-508.5,0.00055342,120]
[312523028,1705942277879,-500.0,0.00055342,120]
[312523029,1705942277888,-500.0,0.00055342,120]
[312523030,1705942277898,-500.0,0.00055342,120]
[312523031,1705942277907,-1260.2,0.00055342,120]
[312523032,1705942277916,-500.0,0.00055342,120]
[312523033,1705942277926,-1310.32,0.00055342,120]
[312523034,1705942277935,-666.0,0.00055342,120]
[312523035,1705942277943,-1375.16,0.00055342,120]
[312523036,1705942277953,-620.76127672,0.00055342,50]
[312523037,1705942277961,-777.93,0.00055342,120]
[312523038,1705942277970,-500.0,0.00055342,120]
[312523039,1705942277979,-513.36722359,0.00055342,120]
[312523040,1705942277989,-780.67,0.00055342,120]
[312523041,1705942277998,-500.0,0.00055342,120]
[312523042,1705942278008,-609.64,0.00055342,120]
[312523043,1705942278017,-500.0,0.00055342,120]
[312523044,1705942278026,-952.88,0.00055342,120]
[312523045,1705942278035,-500.0,0.00055342,120]
[312523046,1705942278045,-1288.87,0.00055342,120]
[312523047,1705942278055,-614.46,0.00055342,120]
[312523048,1705942278064,-500.0,0.00055342,120]
[312523049,1705942278074,-589.89,0.00055342,120]
[312523050,1705942278085,-500.0,0.00055342,120]
[312523051,1705942278095,-508.24,0.00055342,120]
[312523052,1705942278105,-500.0,0.00055342,120]
[312523053,1705942278114,-1173.95,0.00055342,120]
[312523054,1705942278125,-1099.97,0.00055342,120]
[312523055,1705942278135,-891.26,0.00055342,120]
[312523056,1705942278144,-500.0,0.00055342,120]
[312523057,1705942278154,-1741.05,0.00055342,120]
[312523058,1705942278163,-869.66,0.00055342,120]
[312523059,1705942278173,-983.11,0.00055342,120]
[312523060,1705942278182,-588.97,0.00055342,120]
[312523061,1705942278191,-5629.53,0.00055342,120]
[312523062,1705942278201,-822.9,0.00055342,120]
[312523063,1705942278211,-500.0,0.00055342,120]
[312523064,1705942278221,-1258.02,0.00055342,120]
[312523065,1705942278230,-508.55,0.00055342,120]
[312523066,1705942278241,-639.75,0.00055342,120]
[312523067,1705942278250,-822.29,0.00055342,120]
[312523068,1705942278260,-1538.69,0.00055342,120]
[312523069,1705942278271,-870.0,0.00055342,120]
[312523070,1705942278281,-1693.8,0.00055342,120]
[312523071,1705942278292,-963.73,0.00055342,120]
[312523072,1705942278301,-789.83,0.00055342,120]
[312523073,1705942278311,-500.0,0.00055342,120]
[312523074,1705942278321,-500.0,0.00055342,120]
[312523075,1705942278331,-1271.78,0.00055342,120]
[312523076,1705942278341,-500.0,0.00055342,120]
[312523077,1705942278351,-628.56,0.00055342,120]
[312523078,1705942278361,-869.58,0.00055342,120]
[312523079,1705942278371,-870.17,0.00055342,120]
[312523080,1705942278388,-500.0,0.00055342,120]
[312523081,1705942278398,-599.89,0.00055342,120]
[312523082,1705942278408,-766.25,0.00055342,120]
[312523083,1705942278418,-500.0,0.00055342,120]
[312523084,1705942278432,-1159.8,0.00055342,120]
[312523085,1705942278441,-941.19,0.00055342,120]
[312523086,1705942278451,-500.0,0.00055342,120]
[312523087,1705942278460,-500.0,0.00055342,120]
[312523088,1705942278471,-2189.22,0.00055342,120]
[312523089,1705942278481,-658.14,0.00055342,120]
[312523090,1705942278492,-746.01,0.00055342,120]
[312523091,1705942278503,-944.11,0.00055342,120]
[312523092,1705942278516,-1125.33,0.00055342,120]
[312523093,1705942278526,-500.0,0.00055342,120]
[312523094,1705942278537,-898.57,0.00055342,120]
[312523095,1705942278547,-500.0,0.00055342,120]
[312523096,1705942278557,-1108.3,0.00055342,120]
[312523097,1705942278568,-561.47,0.00055342,120]
[312523098,1705942278578,-847.08,0.00055342,120]
[312523099,1705942278589,-500.0,0.00055342,120]
[312523100,1705942278599,-15010.01,0.00055342,120]
[312523101,1705942278609,-853.26,0.00055342,120]
[312523102,1705942278619,-557.25,0.00055342,120]
[312523103,1705942278633,-470.86808697,0.00055342,120]
[312523104,1705942278642,-500.0,0.00055342,120]
[312523105,1705942278652,-547.35,0.00055342,120]
[312523106,1705942278662,-4920.11,0.00055342,120]
[312523107,1705942278672,-500.0,0.00055342,120]
[312523108,1705942278681,-500.0,0.00055342,120]
[312523109,1705942278691,-872.89,0.00055342,120]
[312523110,1705942278701,-936.9,0.00055342,120]
[312523111,1705942278711,-500.0,0.00055342,120]
[312523112,1705942278720,-613.62,0.00055342,120]
[312523113,1705942278729,-568.85,0.00055342,120]
[312523114,1705942278739,-573.26,0.00055342,120]
[312523115,1705942278749,-500.0,0.00055342,120]
[312523116,1705942278759,-500.0,0.00055342,120]
[312523117,1705942278769,-2055.2,0.00055342,120]
[312523118,1705942278778,-1090.04,0.00055342,120]
[312523119,1705942278788,-1584.68,0.00055342,120]
[312523120,1705942278798,-1225.33,0.00055342,120]
[312523121,1705942278808,-543.38716424,0.00055342,120]
[312523122,1705942278818,-500.0,0.00055342,120]
[312523123,1705942278827,-812.84,0.00055342,120]
[312523124,1705942278837,-522.67035798,0.00055342,120]
[312523125,1705942278847,-9707.12,0.00055342,120]
[312523126,1705942278856,-500.0,0.00055342,120]
[312523127,1705942278866,-1954.82,0.00055342,120]
[312523128,1705942278877,-990.92,0.00055342,120]
[312523129,1705942278887,-731.34,0.00055342,120]
[312523130,1705942278897,-660.76,0.00055342,120]
[312523131,1705942278907,-500.0,0.00055342,120]
[312523132,1705942278917,-500.0,0.00055342,120]
[312523133,1705942278927,-875.43,0.00055342,120]
[312523134,1705942278936,-903.89,0.00055342,120]
[312523135,1705942278946,-1374.95,0.00055342,120]
[312523136,1705942278956,-500.0,0.00055342,120]
[312523137,1705942278967,-662.41,0.00055342,120]
[312523138,1705942278977,-500.0,0.00055342,120]
[312523139,1705942278986,-270.77769788,0.00055342,120]
[312523140,1705942278997,-959.86,0.00055342,120]
[312523141,1705942279007,-500.0,0.00055342,120]
[312523142,1705942279017,-305.70728483,0.00055342,120]
[312523143,1705942279027,-502.55769997,0.00055342,120]
[312523144,1705942279036,-543.78,0.00055342,120]
[312523145,1705942279046,-500.0,0.00055342,120]
[312523146,1705942279056,-500.0,0.00055342,120]
[312523147,1705942279066,-514.24,0.00055342,10]
[312523148,1705942279075,-500.0,0.00055342,120]
[312523149,1705942279085,-723.5,0.00055342,120]
[312523150,1705942279096,-680.76,0.00055342,120]
[312523151,1705942279106,-767.63,0.00055342,120]
[312523152,1705942279116,-699.54,0.00055342,120]
[312523153,1705942279127,-1748.34,0.00055342,120]
[312523154,1705942279137,-780.8,0.00055342,120]
[312523155,1705942279146,-674.41,0.00055342,120]
[312523156,1705942279156,-500.0,0.00055342,120]
[312523157,1705942279165,-526.37,0.00055342,2]
[312523158,1705942279175,-500.0,0.00055342,120]
[312523159,1705942279185,-795.91,0.00055342,120]
[312523160,1705942279195,-667.0,0.00055342,120]
[312523161,1705942279204,-500.0,0.00055342,120]
[312523162,1705942279214,-1000.0,0.00055342,2]
[312523163,1705942279224,-669.33,0.00055342,120]
[312523164,1705942279233,-568.69,0.00055342,120]
[312523165,1705942279243,-2117.65,0.00055342,120]
[312523166,1705942279252,-607.89,0.00055342,120]
[312523167,1705942279262,-500.0,0.00055342,120]
[312523168,1705942279271,-968.34,0.00055342,120]
[312523169,1705942279281,-554.18,0.00055342,120]
[312523170,1705942279290,-500.0,0.00055342,120]
[312523171,1705942279300,-779.2,0.00055342,120]
[312523172,1705942279309,-917.47,0.00055342,120]
[312523173,1705942279319,-663.62,0.00055342,120]
[312523174,1705942279328,-931.15,0.00055342,120]